bitfinex-derivatives/quotes_ETHF0:USTF0_20250326
["timestamp","ask_amount","ask_price","bid_price","bid_amount"]
[1743023346000,0.99674,2006.5,2006.4,0.03438226]
[1743023346309,0.99683,2006.3,2006.2,1.0043038]
[1743023346597,4.20463,2006.3,2006.2,1.0043438]
[1743023347401,4.20463,2006.3,2006.2,1.6961438]
[1743023349599,4.20463,2006.3,2006.2,0.6992638]
[1743023349800,4.20463,2006.3,2006.2,1.6961438]
[1743023350309,4.20463,2006.3,2006.2,0.6992638]
[1743023350502,4.20463,2006.3,2006.2,1.6961438]
[1743023350912,4.20463,2006.3,2006.2,0.6992638]
[1743023351509,4.20463,2006.3,2006.2,1.6961438]
[1743023351706,4.20463,2006.3,2006.2,0.74944497]
[1743023352211,4.20463,2006.3,2006.2,2.15604497]
[1743023352706,4.20463,2006.3,2006.2,0.05764497]
[1743023352912,4.20463,2006.3,2006.2,0.07553155]
[1743023354106,5.64973,2006.3,2006.2,0.07553155]
[1743023356107,5.64973,2006.3,2006.2,1.46513155]
[1743023357010,5.64973,2006.3,2006.2,2.46201155]
[1743023357711,0.99677,2006.5,2006.4,0.99674]
[1743023358006,0.99677,2006.5,2006.4,1.06480775]
[1743023358211,2.37627,2006.5,2006.4,1.06480775]
[1743023358409,2.37627,2006.5,2006.4,2.48950775]
[1743023358613,2.37627,2006.5,2006.4,2.53968638]
[1743023359118,2.37627,2006.5,2006.4,2.53973638]
[1743023359717,2.37627,2006.5,2006.4,2.5576255]
[1743023359914,2.37627,2006.5,2006.4,1.5608355]
[1743023360415,2.37627,2006.5,2006.4,2.5576255]
[1743023361014,2.37627,2006.5,2006.4,1.5608355]
[1743023361514,2.37627,2006.5,2006.4,2.5576255]
[1743023364524,1.3795,2006.5,2006.4,2.5576255]
[1743023364818,2.37624,2006.5,2006.4,2.5576255]
[1743023365311,2.37624,2006.5,2006.4,2.60780159]
[1743023366518,2.37624,2006.5,2006.4,2.62569325]
[1743023366819,3.2078,2006.6,2006.5,0.99674]
[1743023367111,2.1227,2006.6,2006.5,2.30064]
[1743023367518,0.9966,2006.8,2006.5,2.30064]
[1743023367519,0.9966,2006.8,2006.7,0.99664]
[1743023368321,2.32198,2006.9,2006.8,0.99659]
[1743023368618,2.32198,2006.9,2006.8,1.20079325]
[1743023369413,1.3254,2006.9,2006.8,1.20079325]
[1743023370421,2.32194,2006.9,2006.8,1.91399325]
[1743023370614,1.3254,2006.9,2006.8,2.57789325]
[1743023370923,6.3661,2007.2,2006.9,0.99648]
[1743023371118,2.40234,2007.1,2007.0,2.40487]
[1743023371319,2.40234,2007.1,2007.0,0.99647]
[1743023371511,2.40234,2007.1,2007.0,1.20067325]
[1743023372116,2.40234,2007.1,2007.0,1.25084679]
[1743023372618,1.4059,2007.1,2007.0,1.25084679]
[1743023372816,0.0074638,2007.3,2007.2,0.99639]
[1743023373225,0.0074638,2007.3,2007.2,1.268661]
[1743023373423,0.0074638,2007.3,2007.2,5.175261]
[1743023373609,0.0074638,2007.3,2007.2,45.975261]
[1743023377216,0.0074638,2007.3,2007.2,5.175261]
[1743023378819,0.0074638,2007.3,2007.2,5.20974453]
[1743023384529,0.0074638,2007.3,2007.2,5.2599065]
[1743023390525,0.0074638,2007.3,2007.2,6.6748065]
[1743023391526,1.3812,2007.4,2007.3,0.99634]
[1743023391827,1.3812,2007.4,2007.3,5.61904]
[1743023392533,1.3812,2007.4,2007.3,5.9759565]
[1743023396134,1.3812,2007.4,2007.3,2.7681565]
[1743023396439,1.3812,2007.4,2007.3,5.9759565]
[1743023396738,0.0074638,2007.6,2007.5,0.99624]
[1743023397037,1.3306638,2007.6,2007.5,0.99624]
[1743023397228,1.3306638,2007.6,2007.5,3.04714]
[1743023397729,1.3306638,2007.6,2007.5,3.4040565]
[1743023404440,2.3268538,2007.6,2007.5,3.4040565]
[1743023416156,1.3306638,2007.6,2007.5,3.4040565]
[1743023416348,2.3268538,2007.6,2007.5,3.4040565]
[1743023416851,1.3306638,2007.6,2007.5,3.4040565]
[1743023417148,1.3306638,2007.6,2007.5,6.6350565]
[1743023417348,0.0074638,2007.6,2007.5,6.6350565]
[1743023418351,0.676,2007.9,2007.8,0.99609]
[1743023418352,0.99606,2007.9,2007.8,0.99609]
[1743023418557,2.35036,2007.9,2007.8,0.99609]
[1743023418747,2.35036,2007.9,2007.8,7.3124065]
[1743023418947,1.3543,2007.9,2007.8,7.3124065]
[1743023419154,2.35034,2007.9,2007.8,7.3124065]
[1743023419742,1.3543,2007.9,2007.8,7.3124065]
[1743023420554,2.35034,2007.9,2007.8,7.3124065]
[1743023421656,1.3543,2007.9,2007.8,7.3124065]
[1743023421856,2.35034,2007.9,2007.8,7.3124065]
[1743023422053,1.3543,2007.9,2007.8,7.3124065]
[1743023422256,2.35034,2007.9,2007.8,7.3124065]
[1743023422554,1.3543,2007.9,2007.8,7.3124065]
[1743023422859,2.35034,2007.9,2007.8,7.3124065]
[1743023423361,1.3543,2007.9,2007.8,7.3124065]
[1743023439556,1.3543,2007.9,2007.8,10.7988065]
[1743023441073,1.3543,2007.9,2007.8,10.80487352]
[1743023441672,1.3543,2007.9,2007.8,10.81094054]
[1743023442372,1.3543,2007.9,2007.8,51.61094054]
[1743023443271,1.3543,2007.9,2007.8,51.61700756]
[1743023446772,1.3543,2007.9,2007.8,51.62307458]
[1743023447373,3.2152638,2008.1,2007.9,0.99599]
[1743023447573,3.2152638,2008.1,2008.0,1.3854]
[1743023447875,4.2112038,2008.1,2008.0,2.80637425]
[1743023451575,5.5601038,2008.1,2008.0,2.80637425]
[1743023453277,2.3523038,2008.1,2008.0,2.80637425]
[1743023463279,2.3523038,2008.1,2008.0,2.85653241]
[1743023468295,3.47634126,2008.1,2008.0,2.85653241]
[1743023474986,2.3523038,2008.1,2008.0,2.85653241]
[1743023475296,1.0034038,2008.1,2008.0,2.85653241]
[1743023475590,0.0074638,2008.1,2008.0,6.06433241]
[1743023482998,0.0074638,2008.1,2008.0,2.85653241]
[1743023483199,0.0074638,2008.1,2008.0,6.06433241]
[1743023483996,3.2078,2008.5,2008.4,0.99579]
[1743023484195,5.56486,2008.5,2008.4,0.99579]
[1743023484401,1.3613,2008.5,2008.4,4.18463241]
[1743023485009,0.99574,2008.6,2008.5,0.99574]
[1743023485195,5.69672,2008.9,2008.6,0.99564]
[1743023485196,2.4148038,2008.7,2008.6,0.99564]
[1743023485394,2.4148038,2008.7,2008.6,2.90458241]
[1743023485592,1.4191638,2008.7,2008.6,2.90458241]
[1743023485906,2.4148038,2008.7,2008.6,2.90458241]
[1743023495112,1.4191638,2008.7,2008.6,2.90458241]
[1743023496116,2.4148038,2008.7,2008.6,2.90458241]
[1743023496307,0.0074638,2008.7,2008.6,2.90458241]
[1743023497405,0.99548,2009.1,2009.0,0.99545]
[1743023497611,2.32048,2009.1,2009.0,0.99545]
[1743023498112,2.32045,2009.1,2009.0,3.02745]
[1743023498314,2.32045,2009.1,2009.0,3.50259241]
[1743023498709,1.325,2009.1,2009.0,3.50259241]
[1743023499105,1.325,2009.1,2009.0,44.30259241]
[1743023501215,4.82045,2009.1,2009.0,2.41e-06]
[1743023501413,0.99579,2008.5,2008.4,0.99577]
[1743023501608,0.99577,2008.6,2008.5,0.99572]
[1743023502805,1.4103,2008.7,2008.6,0.99569]
[1743023503011,2.40594,2008.7,2008.6,2.32739]
[1743023503811,3.06944,2008.7,2008.6,2.32739]
[1743023504905,3.06944,2008.7,2008.6,5.55339]
[1743023505105,3.06944,2008.7,2008.6,1.3317]
[1743023505512,3.06944,2008.7,2008.5,7.42953]
[1743023505715,3.10469,2008.6,2008.5,4.22173]
[1743023506112,3.10469,2008.6,2008.5,0.99573]
[1743023506320,2.43889,2008.6,2008.5,0.99573]
[1743023509023,2.43889,2008.6,2008.5,5.86493]
[1743023518326,1.4432,2008.6,2008.5,5.86493]
[1743023518532,2.43889,2008.6,2008.5,5.86493]
[1743023520428,1.4432,2008.6,2008.5,5.86493]
[1743023520624,0.99569,2008.7,2008.6,0.99569]
[1743023520821,2.39449,2008.7,2008.6,3.10509]
[1743023521022,2.39449,2008.7,2008.6,3.81849]
[1743023521825,0.99569,2008.7,2008.6,3.81849]
[1743023522326,2.43859,2008.7,2008.6,3.81849]
[1743023525834,4.20343,2008.8,2008.7,0.99564]
[1743023526133,5.60333,2008.8,2008.7,2.39164]
[1743023532140,5.60333,2008.8,2008.7,2.39164]
[1743023554037,6.72585824,2008.8,2008.7,2.39164]
[1743023554639,3.51805824,2008.8,2008.7,2.39164]
[1743023557640,2.52242824,2008.8,2008.7,2.39164]
[1743023557942,1.3999,2008.8,2008.7,2.39164]
[1743023558143,2.39549,2008.8,2008.7,2.39164]
[1743023559560,0.99569,2008.6,2008.5,3.4851]
[1743023559852,4.20349,2008.6,2008.5,2.41764481]
[1743023560156,0.99579,2008.4,2008.3,1.0032838]
[1743023560653,2.37269,2008.4,2008.3,1.0032838]
[1743023560844,2.37269,2008.4,2008.3,2.3490838]
[1743023561861,2.37269,2008.4,2008.3,3.7460838]
[1743023568369,0.99579,2008.5,2008.4,0.99574]
[1743023568572,2.38679,2008.5,2008.4,2.41034]
[1743023574087,4.20343,2008.8,2008.7,0.99564]
[1743023574571,4.20343,2008.8,2008.7,3.69204]
[1743023574772,5.50953,2008.8,2008.7,3.69204]
[1743023577173,3.2078,2009.1,2009.0,0.9955]
[1743023577381,4.5759,2009.1,2009.0,0.9955]
[1743023578079,4.5759,2009.1,2009.0,2.4002]
[1743023578276,1.4458135,2009.3,2009.2,0.9954]
[1743023578477,0.0049135,2009.3,2009.2,0.9954]
[1743023578676,2.3683935,2009.3,2009.2,0.9954]
[1743023578873,2.3683935,2009.3,2009.2,2.3804]
[1743023582179,1.3730135,2009.3,2008.6,3.2078]
[1743023582484,0.99556,2009.0,2008.9,0.99549]
[1743023582671,0.99556,2009.0,2008.9,2.40629]
[1743023585987,0.99545,2009.2,2009.1,0.9954]
[1743023586283,1.4172,2009.2,2009.1,0.9954]
[1743023586681,1.4172,2009.2,2009.1,2.3225]
[1743023587189,1.0003035,2009.3,2009.2,0.9954]
[1743023587391,2.4175035,2009.3,2009.2,2.3225]
[1743023597192,2.4175035,2009.3,2009.2,1.3271]
[1743023602693,2.4175035,2009.3,2009.2,1.34247327]
[1743023604603,2.4175035,2009.3,2009.2,0.01537327]
[1743023612609,5.6253035,2009.3,2009.2,0.01537327]
[1743023613309,6.74878978,2009.3,2009.2,0.01537327]
[1743023617216,6.74878978,2009.3,2009.2,1.37817327]
[1743023618315,5.6253035,2009.3,2009.2,1.37817327]
[1743023619318,6.74875403,2009.3,2009.2,1.37817327]
[1743023625214,5.33155403,2009.3,2009.2,1.37817327]
[1743023626217,5.33155403,2009.3,2009.2,2.37357327]
[1743023626418,5.33155403,2009.3,2009.2,1.37817327]
[1743023626921,4.2081035,2009.3,2009.2,1.37817327]
[1743023627712,4.2081035,2009.3,2009.2,2.37357327]
[1743023627912,4.2080635,2009.3,2009.2,2.37357327]
[1743023628317,3.2127135,2009.3,2009.2,2.37357327]
[1743023628517,0.99528,2009.5,2009.4,0.99525]
[1743023628717,0.99528,2009.5,2009.4,1.01062327]
[1743023629121,0.99528,2009.5,2009.4,2.34952327]
[1743023629320,4.33179222,2009.6,2009.5,0.99525]
[1743023629321,5.32701222,2009.6,2009.5,0.99525]
[1743023629520,4.20302,2009.6,2009.5,2.33415]
[1743023629724,4.20302,2009.6,2009.5,2.34952327]
[1743023640241,3.2078,2009.6,2009.5,2.34952327]
[1743023640738,0.99512,2009.8,2009.7,0.99515]
[1743023641535,0.99512,2009.8,2009.7,3.07085]
[1743023641927,0.99512,2009.8,2009.7,3.08622327]
[1743023644128,3.2078,2010.0,2009.7,5.57398327]
[1743023644329,4.20285,2010.0,2009.9,0.99505]
[1743023644736,5.55785,2010.0,2009.9,1.66575]
[1743023644944,5.55785,2010.0,2009.9,1.68112327]
[1743023645239,5.69495,2010.3,2010.1,0.9949]
[1743023645442,5.55765,2010.3,2010.2,1.3484]
[1743023645840,5.55765,2010.3,2010.2,2.03497327]
[1743023651143,8.19371,2010.6,2010.2,2.03497327]
[1743023651144,5.69458,2010.6,2010.2,2.03497327]
[1743023651345,0.99483,2010.4,2010.3,3.0772]
[1743023651943,0.99483,2010.4,2010.3,3.09257327]
[1743023652449,0.99483,2010.4,2010.3,3.09262327]
[1743023652945,1.4208,2010.5,2010.4,0.99475]
[1743023652946,0.99479,2010.5,2010.4,0.99475]
[1743023653148,0.99479,2010.5,2010.4,2.32815]
[1743023653946,0.99479,2010.5,2010.4,2.34352327]
[1743023655340,4.20254,2010.6,2010.5,0.99475]
[1743023655545,4.20254,2010.6,2010.5,3.03725]
[1743023655747,0.99474,2010.6,2010.5,3.03725]
[1743023656151,0.99474,2010.6,2010.5,6.27062327]
[1743023656352,1.3549,2010.7,2010.6,0.9947]
[1743023656353,2.34959,2010.7,2010.6,0.9947]
[1743023656546,2.34959,2010.7,2010.6,1.4301]
[1743023656854,2.34959,2010.7,2010.6,2.1521]
[1743023657057,2.34959,2010.7,2010.6,2.16747327]
[1743023657753,2.34959,2010.7,2010.6,3.16217327]
[1743023657955,0.99469,2010.7,2010.6,3.16217327]
[1743023658153,2.3023,2010.8,2010.7,0.99465]
[1743023658352,0.99457,2010.9,2010.8,0.9946]
[1743023658558,2.30225,2010.9,2010.8,1.685]
[1743023659041,2.30225,2010.9,2010.8,1.70037327]
[1743023659247,0.99455,2010.9,2010.8,1.70037327]
[1743023659458,2.43604,2011.0,2010.9,0.99455]
[1743023659659,2.43604,2011.0,2010.9,1.71415]
[1743023659954,2.43604,2011.0,2010.9,42.51415]
[1743023660258,2.43604,2011.0,2010.9,42.52952327]
[1743023660959,0.99454,2011.0,2010.9,42.52952327]
[1743023664162,0.99454,2011.0,2010.9,1.72952327]
[1743023666257,2.43599,2011.1,2011.0,0.99451]
[1743023666464,0.99451,2011.0,2010.9,1.72949327]
[1743023670568,0.99451,2011.0,2010.9,3.14879327]
[1743023671871,0.99451,2011.0,2010.9,6.23639327]
[1743023672367,0.99451,2011.0,2010.9,4.52227327]
[1743023672570,2.42381,2011.0,2010.9,4.52227327]
[1743023674767,2.42381,2011.0,2010.9,3.10297327]
[1743023676675,3.78511,2011.0,2010.9,3.10297327]
[1743023686576,4.90779052,2011.0,2010.9,3.10297327]
[1743023701381,4.90779052,2011.0,2010.9,0.97741327]
[1743023701584,0.99465,2010.7,2010.6,0.7226]
[1743023701775,4.20245,2010.7,2010.6,0.7226]
[1743023702581,5.50465,2010.7,2010.6,0.7226]
[1743023704681,5.50465,2010.7,2010.6,2.0611]
[1743023707886,4.20245,2010.7,2010.6,2.0611]
[1743023708192,4.20245,2010.7,2010.6,3.0558]
[1743023708385,1.12268052,2010.8,2010.6,3.0558]
[1743023708581,2.11728052,2010.8,2010.7,1.4422]
[1743023708881,0.9946,2010.8,2010.7,2.43685]
[1743023709080,0.99459,2010.9,2010.8,0.9946]
[1743023709281,0.99451,2011.0,2010.9,0.99455]
[1743023709485,0.9945,2011.1,2011.0,0.99447]
[1743023710291,0.9945,2011.1,2011.0,2.43667]
[1743023711582,6.35993,2011.3,2011.0,2.43667]
[1743023711583,4.5958,2011.3,2011.0,1.4422]
[1743023711788,1.12181065,2011.3,2011.1,4.5543]
[1743023711990,2.11621065,2011.3,2011.2,2.34087]
[1743023712184,2.11621065,2011.3,2011.2,5.55587]
[1743023712390,0.9944,2011.3,2011.2,5.55587]
[1743023715797,0.99435,2011.4,2011.3,0.99431]
[1743023715993,0.99435,2011.4,2011.3,2.42081]
[1743023717095,0.99435,2011.4,2011.3,1.4265]
[1743023717799,0.99435,2011.4,2011.3,2.42086]
[1743023718998,0.99435,2011.4,2011.3,1.4265]
[1743023726225,1.67705,2011.4,2011.3,1.4265]
[1743023729824,0.99441,2011.2,2011.1,0.7016]
[1743023730013,0.9947,2010.6,2010.5,54.3465]
[1743023730221,0.99466,2010.8,2010.7,0.99462]
[1743023730521,0.9947,2010.7,2010.6,0.99466]
[1743023731320,0.9947,2010.7,2010.6,3.12686]
[1743023732728,0.9947,2010.7,2010.6,3.79406]
[1743023734517,1.3924,2010.8,2010.7,0.99458]
[1743023734518,0.99465,2010.8,2010.7,0.99458]
[1743023734722,0.99465,2010.8,2010.7,2.39198]
[1743023747829,2.39825,2010.8,2010.7,2.39198]
[1743023748033,0.99465,2010.8,2010.7,2.39198]
[1743023748433,2.48611,2011.2,2010.7,1.3974]
[1743023748634,1.4036,2011.1,2011.0,0.99451]
[1743023748833,0.99445,2011.2,2011.1,0.99441]
[1743023749034,0.99445,2011.2,2011.1,2.32011]
[1743023749245,4.2022,2011.3,2011.2,0.99441]
[1743023749462,4.2022,2011.3,2011.2,2.98701]
[1743023749767,5.6058,2011.3,2011.2,2.98701]
[1743023755150,4.6114,2011.3,2011.2,2.98701]
[1743023755342,1.4036,2011.3,2011.2,2.98701]
[1743023756646,2.39796,2011.3,2011.2,2.98701]
[1743023757551,1.4036,2011.3,2011.2,2.98701]
[1743023760851,2.39796,2011.3,2011.2,2.98701]
[1743023761044,1.4036,2011.3,2011.2,2.98701]
[1743023762163,0.99429,2011.5,2011.4,0.99431]
[1743023762449,4.87475,2011.6,2011.5,0.99426]
[1743023763355,4.87475,2011.6,2011.5,1.67396]
[1743023763554,4.87475,2011.6,2011.5,3.09576]
[1743023764249,4.87475,2011.6,2011.5,43.89576]
[1743023766576,4.87475,2011.6,2011.5,3.09576]
[1743023774356,5.53315,2011.6,2011.5,2.41606]
[1743023775267,5.53315,2011.6,2011.5,1.4218]
[1743023775669,5.53315,2011.6,2011.5,2.41606]
[1743023776665,0.99426,2011.5,2011.4,45.66717]
[1743023776864,2.39616,2011.5,2011.4,46.97177]
[1743023788385,2.44604536,2011.5,2011.4,46.97177]
[1743023788892,2.49593078,2011.5,2011.4,46.97177]
[1743023789487,0.99431,2011.4,2011.3,0.0074638]
[1743023789697,6.34341,2011.4,2011.3,0.0074638]
[1743023789989,0.9946,2010.8,2010.7,57.53544]
[1743023790190,0.9946,2010.8,2010.7,8.11654]
[1743023790393,1.10906033,2010.8,2010.7,8.11654]
[1743023790600,1.10906033,2010.8,2010.7,47.02684]
[1743023790886,2.45606033,2010.8,2010.7,47.02684]
[1743023792296,2.45606033,2010.8,2010.7,43.81904]
[1743023796989,0.11446033,2010.8,2010.7,43.81904]
[1743023800804,1.47446033,2010.8,2010.7,43.81904]
[1743023800995,1.47446033,2010.8,2010.7,47.05144]
[1743023802906,2.46906033,2010.8,2010.7,47.05144]
[1743023803508,1.47446033,2010.8,2010.7,47.05144]
[1743023806710,2.46906033,2010.8,2010.7,47.05144]
[1743023807410,2.46906033,2010.8,2010.7,46.0568]
[1743023807703,2.46906033,2010.8,2010.7,5.54735]
[1743023808107,3.15396033,2010.8,2010.7,5.54735]
[1743023810109,3.15396033,2010.8,2010.7,4.5527]
[1743023816211,3.15396033,2010.8,2010.7,3.2324]
[1743023816711,6.36176033,2010.8,2010.7,3.2324]
[1743023817106,7.48204915,2010.8,2010.7,3.2324]
[1743023828024,4.27424915,2010.8,2010.7,3.2324]
[1743023828224,7.48204915,2010.8,2010.7,3.2324]
[1743023830527,6.79714915,2010.8,2010.7,3.2324]
[1743023830727,6.79714915,2010.8,2010.7,3.8841]
[1743023830928,5.67686033,2010.8,2010.7,3.8841]
[1743023831230,5.67686033,2010.8,2010.7,5.2406]
[1743023833624,5.67686033,2010.8,2010.7,6.23525]
[1743023834527,5.67686033,2010.8,2010.7,5.2406]
[1743023834721,5.67686033,2010.8,2010.7,6.23525]
[1743023835422,5.67686033,2010.8,2010.7,5.2406]
[1743023835827,4.31686033,2010.8,2010.7,6.23525]
[1743023836432,4.31686033,2010.8,2010.7,5.2406]
[1743023836732,4.32001856,2010.8,2010.7,6.23525]
[1743023837130,4.32001856,2010.8,2010.7,5.2406]
[1743023837928,4.32001856,2010.8,2010.7,6.23525]
[1743023838331,4.32001856,2010.8,2010.7,5.2406]
[1743023839123,4.32001856,2010.8,2010.7,6.23525]
[1743023839328,4.57419592,2010.8,2010.7,6.23525]
[1743023840535,5.88739592,2010.8,2010.7,6.23525]
[1743023841033,5.94358814,2010.8,2010.7,6.23525]
[1743023841225,5.94358814,2010.8,2010.7,5.2406]
[1743023841633,5.94358814,2010.8,2010.7,6.23525]
[1743023842832,4.63038814,2010.8,2010.7,6.23525]
[1743023843032,0.42798814,2010.8,2010.7,6.23525]
[1743023843337,0.0074638,2011.0,2010.9,0.99455]
[1743023843726,0.99446,2011.1,2011.0,0.99451]
[1743023846735,1.24859817,2011.1,2011.0,3.64941]
[1743023846933,1.24859817,2011.1,2011.0,4.36561]
[1743023852837,1.24859817,2011.1,2011.0,5.79811]
[1743023856936,0.25413817,2011.1,2011.0,5.79811]
[1743023857343,1.24859817,2011.1,2011.0,5.79811]
[1743023861244,1.24859817,2011.1,2011.0,2.6549]
[1743023861441,4.45639817,2011.1,2011.0,2.6549]
[1743023861637,5.86509817,2011.1,2011.0,2.6549]
[1743023869345,6.11928691,2011.1,2011.0,2.6549]
[1743023871744,7.2396755,2011.1,2011.0,2.6549]
[1743023875646,7.25234975,2011.1,2011.0,2.6549]
[1743023876646,6.73134859,2011.1,2011.0,2.6549]
[1743023876853,7.36495791,2011.1,2011.0,2.6549]
[1743023879255,0.9947,2010.6,2010.5,0.0074638]
[1743023879561,7.4095,2010.6,2010.5,3.8e-06]
[1743023879752,12.53440932,2010.6,2010.5,3.8e-06]
[1743023879952,13.65479791,2010.6,2010.5,3.8e-06]
[1743023882450,13.03848859,2010.6,2010.5,3.8e-06]
[1743023882658,13.72179495,2010.6,2010.5,3.8e-06]
[1743023882856,14.13042941,2010.6,2010.5,3.8e-06]
[1743023883760,14.14831835,2010.6,2010.5,3.8e-06]
[1743023885258,19.97831835,2010.6,2010.5,3.8e-06]
[1743023885854,20.05824598,2010.6,2010.5,3.8e-06]
[1743023886454,19.97831835,2010.6,2010.5,3.8e-06]
[1743023887957,19.97831835,2010.6,2009.6,2.1986]
[1743023887958,0.99515,2009.7,2009.6,2.1986]
[1743023888257,0.9952,2009.6,2009.5,0.6577]
[1743023888760,1.6963953,2009.6,2009.5,0.6577]
[1743023889362,1.74628446,2009.6,2009.5,0.6577]
[1743023890364,1.76398128,2009.6,2009.5,0.6577]
[1743023891554,1.76398128,2009.6,2009.5,1.9898]
[1743023893365,3.15378128,2009.6,2009.5,1.9898]
[1743023895668,0.99525,2009.5,2009.4,0.6847]
[1743023895859,2.31595,2009.5,2009.4,0.6847]
[1743023896163,3.13447379,2009.5,2009.4,0.6847]
[1743023897163,3.15231726,2009.5,2009.4,0.6847]
[1743023898061,1.83161726,2009.5,2009.4,0.6847]
[1743023899056,1.83161726,2009.5,2009.4,2.7063]
[1743023899662,7.13555,2009.7,2009.4,2.7063]
[1743023899663,0.99523,2009.6,2009.5,0.99523]
[1743023900165,0.99525,2009.5,2009.4,2.39426]
[1743023900666,0.99525,2009.5,2009.4,1.399]
[1743023901662,0.99525,2009.5,2009.4,2.3943]
[1743023902570,0.99518,2009.7,2009.6,0.9952]
[1743023902770,1.04504684,2009.7,2009.6,0.9952]
[1743023903770,1.0026038,2009.8,2009.7,0.92756402]
[1743023906275,0.0074638,2009.8,2009.7,0.92756402]
[1743023906469,1.0025638,2009.8,2009.7,0.92756402]
[1743023907365,0.9952,2009.7,2009.6,0.99515]
[1743023910573,1.3733638,2009.8,2009.7,0.99515]
[1743023910869,0.0074638,2009.8,2009.7,0.99515]
[1743023911065,2.48729,2010.2,2009.7,0.99515]
[1743023911066,0.995,2010.1,2010.0,0.99495]
[1743023911266,0.995,2010.1,2010.0,2.29535]
[1743023911774,1.04489055,2010.1,2010.0,2.29535]
[1743023913072,1.05023437,2010.1,2010.0,2.29535]
[1743023913975,0.995,2010.1,2010.0,2.29535]
[1743023914179,1.06258598,2010.1,2010.0,2.29535]
[1743023917779,2.39038598,2010.1,2010.0,2.29535]
[1743023920085,2.3957298,2010.1,2010.0,2.29535]
[1743023923382,0.995,2010.0,2009.9,2.43292]
[1743023923685,3.0921,2010.0,2009.9,2.43292]
[1743023924082,3.1650298,2010.0,2009.9,2.43292]
[1743023925284,3.1650298,2010.0,2009.9,0.99502]
[1743023927281,3.1650298,2010.0,2009.9,41.79502]
[1743023927890,3.1650298,2010.0,2009.9,41.79505]
[1743023929488,3.1650298,2010.0,2009.9,40.8]
[1743023929682,0.9951,2009.8,2009.7,0.99511]
[1743023930292,1.0680298,2009.8,2009.7,41.79511]
[1743023930483,2.4137298,2009.8,2009.7,41.79511]
[1743023932592,2.48788,2009.7,2009.2,8.47647]
[1743023932795,0.9953,2009.4,2009.3,1.0027738]
[1743023933097,0.9953,2009.4,2009.3,43.1546738]
[1743023933393,1.0682298,2009.4,2009.3,43.1546738]
[1743023940198,1.08090403,2009.4,2009.3,43.1546738]
[1743023941590,1.08090403,2009.4,2009.3,0.0074638]
[1743023944092,5.07392403,2009.4,2009.0,2.1984]
[1743023944296,4.20325,2009.1,2009.0,2.1984]
[1743023944699,6.26825,2009.1,2009.0,42.9984]
[1743023945097,6.26825,2009.1,2009.0,2.1984]
[1743023945396,6.35385403,2009.1,2009.0,2.1984]
[1743023945586,0.9955,2009.0,2008.9,1.3729]
[1743023945790,3.0247,2009.0,2008.9,1.3729]
[1743023946397,3.11030403,2009.0,2008.9,1.3729]
[1743023949201,3.17789001,2009.0,2008.9,1.3729]
[1743023949802,6.38569001,2009.0,2008.9,1.3729]
[1743023953702,1.14869001,2009.0,2008.9,2.36844]
[1743023953898,0.15319001,2009.0,2008.9,3.03444]
[1743023954201,0.15319001,2009.0,2008.9,6.24144]
[1743023954402,1.14869001,2009.0,2008.9,47.04144]
[1743023954902,1.14869001,2009.0,2008.9,46.0459]
[1743023955498,2.46299001,2009.0,2008.9,47.04144]
[1743023955697,2.46299001,2009.0,2008.9,46.0459]
[1743023955905,2.46299001,2009.0,2008.9,42.8389]
[1743023957502,2.46299001,2009.0,2008.9,40.8]
[1743023957703,2.46299001,2009.0,2008.9,42.1503]
[1743023957904,2.46299001,2009.0,2008.9,40.8]
[1743023958302,0.99554,2008.9,2008.8,2.9663438]
[1743023958504,2.31574,2008.9,2008.8,2.9663438]
[1743023958803,2.31574,2008.9,2008.8,42.1124638]
[1743023959208,2.31574,2008.9,2008.8,43.1080538]
[1743023959396,2.46893001,2008.9,2008.8,42.1124638]
[1743023959599,2.46893001,2008.9,2008.8,43.1080538]
[1743023959803,2.46893001,2008.9,2008.8,42.1124638]
[1743023960204,2.46893001,2008.9,2008.8,43.1080538]
[1743023960508,2.46893001,2008.9,2008.8,42.1124638]
[1743023961210,2.46893001,2008.9,2008.8,43.1080538]
[1743023963415,2.46893001,2008.9,2008.8,42.1124638]
[1743023963808,2.46893001,2008.9,2008.8,43.1080538]
[1743023967024,2.46893001,2008.9,2008.8,42.1124638]
[1743023967622,2.46893001,2008.9,2008.8,43.1080538]
[1743023967821,2.46893001,2008.9,2008.8,42.1124638]
[1743023968331,2.46893001,2008.9,2008.8,43.1080538]
[1743023969027,2.46893001,2008.9,2008.8,42.1124638]
[1743023970420,2.46893001,2008.9,2008.8,40.8074638]
[1743023971030,2.46893001,2008.9,2008.8,42.2361638]
[1743023971235,2.46893001,2008.9,2008.8,1.4361638]
[1743023972423,2.46893001,2008.9,2008.8,2.4317538]
[1743023973329,2.46893001,2008.9,2008.8,1.4361638]
[1743023973530,2.46893001,2008.9,2008.8,2.4317538]
[1743023973732,2.46893001,2008.9,2008.8,3.1019538]
[1743023979925,0.99545,2009.1,2009.0,0.9955]
[1743023980537,0.99545,2009.1,2009.0,43.1882]
[1743023980538,2.37185,2009.1,2009.0,43.1882]
[1743023982740,1.3764,2009.1,2009.0,43.1882]
[1743023983137,0.0074638,2009.3,2009.2,0.9954]
[1743023983832,0.0074638,2009.3,2009.2,1.6812]
[1743023984444,1.4090638,2009.3,2009.2,2.9888]
[1743023989549,1.4090638,2009.3,2009.2,2.9888]
[1743023989937,0.0074638,2009.3,2009.2,2.9888]
[1743023990340,0.9951,2009.9,2009.3,0.99535]
[1743023990544,1.364,2009.6,2009.5,0.99525]
[1743023990849,1.364,2009.6,2009.5,3.02945]
[1743023991045,1.364,2009.6,2009.5,43.82945]
[1743023994153,1.364,2009.6,2009.5,46.02665]
[1743023995250,1.364,2009.6,2009.5,49.23445]
[1743023997051,1.364,2009.6,2009.5,47.03725]
[1743024001243,1.364,2009.6,2009.5,49.23435]
[1743024003558,1.364,2009.6,2009.5,46.02655]
[1743024003851,1.364,2009.6,2009.5,49.23435]
[1743024004350,2.3592,2009.6,2009.5,6.40015]